bitfinex/quotes_BTCUSD_20240911
["timestamp","ask_amount","ask_price","bid_price","bid_amount"]
[1726081116012,1.291393,57619.0,57618.0,0.001638]
[1726081116425,0.944286,57619.0,57618.0,0.001638]
[1726081116742,0.174372,57619.0,57618.0,0.001638]
[1726081117241,0.000819,57619.0,57618.0,0.119058]
[1726081117694,0.000819,57619.0,57618.0,0.292614]
[1726081117922,0.000819,57619.0,57618.0,0.119058]
[1726081118415,0.02803542,57619.0,57618.0,0.639727]
[1726081118920,0.02803542,57619.0,57618.0,0.98684]
[1726081119392,0.02803542,57619.0,57618.0,0.639727]
[1726081119867,0.02803542,57619.0,57618.0,0.292614]
[1726081120631,0.02803542,57619.0,57618.0,0.001638]
[1726081120851,0.89580242,57619.0,57618.0,0.001638]
[1726081122043,0.868586,57619.0,57618.0,0.001638]
[1726081122252,1.215693,57619.0,57618.0,0.001638]
[1726081126838,1.217693,57619.0,57618.0,0.001638]
[1726081127647,1.215693,57619.0,57618.0,0.001638]
[1726081127860,1.217693,57619.0,57618.0,0.001638]
[1726081128636,1.215693,57619.0,57618.0,0.001638]
[1726081129783,1.26709278,57619.0,57618.0,0.001638]
[1726081130028,1.26719325,57619.0,57618.0,0.001638]
[1726081130301,1.26919325,57619.0,57618.0,0.001638]
[1726081130764,0.92008625,57619.0,57618.0,0.001638]
[1726081131035,0.868586,57619.0,57618.0,0.001638]
[1726081131292,1.86914309,57619.0,57618.0,0.001638]
[1726081131518,2.34023528,57619.0,57618.0,0.001638]
[1726081131780,1.51692857,57619.0,57618.0,0.001638]
[1726081132022,1.52192999,57619.0,57618.0,0.001638]
[1726081132278,1.52191185,57619.0,57618.0,0.001638]
[1726081132980,1.41692857,57619.0,57618.0,0.001638]
[1726081133236,1.5201719,57619.0,57618.0,0.001638]
[1726081133511,1.215693,57619.0,57618.0,0.001638]
[1726081133777,0.94581924,57619.0,57618.0,0.001638]
[1726081133995,1.29292624,57619.0,57618.0,0.001638]
[1726081134214,1.29492694,57619.0,57618.0,0.001638]
[1726081134666,1.217693,57619.0,57618.0,0.001638]
[1726081135345,1.26918008,57619.0,57618.0,0.001638]
[1726081135570,1.218693,57619.0,57618.0,0.001638]
[1726081135804,1.216693,57619.0,57618.0,0.001638]
[1726081136033,0.9210727,57619.0,57618.0,0.001638]
[1726081136512,1.218693,57619.0,57618.0,0.001638]
[1726081136693,1.241693,57619.0,57618.0,0.001638]
[1726081136973,1.218693,57619.0,57618.0,0.001638]
[1726081137420,1.216693,57619.0,57618.0,0.001638]
[1726081137662,1.218693,57619.0,57618.0,0.001638]
[1726081140220,1.29592694,57619.0,57618.0,0.001638]
[1726081140449,0.175372,57619.0,57618.0,0.001638]
[1726081140679,0.87392487,57619.0,57618.0,0.001638]
[1726081140920,0.869586,57619.0,57618.0,0.001638]
[1726081141415,0.868586,57619.0,57618.0,0.001638]
[1726081141887,0.869586,57619.0,57618.0,0.004638]
[1726081142371,0.175372,57619.0,57618.0,0.004638]
[1726081142600,0.001819,57619.0,57618.0,0.620907]
[1726081142833,0.001819,57619.0,57618.0,1.13787067]
[1726081143055,0.001819,57619.0,57618.0,1.48498367]
[1726081143759,0.000819,57619.0,57618.0,1.48198367]
[1726081143976,0.000819,57619.0,57618.0,1.93109667]
[1726081144483,0.000819,57619.0,57618.0,2.13065084]
[1726081144722,0.001819,57619.0,57618.0,2.13865084]
[1726081145193,0.001819,57619.0,57618.0,2.13065084]
[1726081145194,0.000819,57619.0,57618.0,2.13065084]
[1726081145608,0.001819,57619.0,57618.0,2.16865084]
[1726081146346,0.001819,57619.0,57618.0,2.2442091]
[1726081146811,0.02802748,57619.0,57618.0,2.2362091]
[1726081147239,0.02902748,57619.0,57618.0,1.8670961]
[1726081147705,0.02802748,57619.0,57618.0,1.8590961]
[1726081148189,0.02802748,57619.0,57618.0,1.8670961]
[1726081148190,0.02902748,57619.0,57618.0,1.8670961]
[1726081149139,0.000819,57619.0,57618.0,1.8590961]
[1726081149888,0.000819,57619.0,57618.0,0.45445043]
[1726081150103,0.000819,57619.0,57618.0,0.001638]
[1726081150104,0.174372,57619.0,57618.0,0.001638]
[1726081150330,0.521479,57619.0,57618.0,0.001638]
[1726081150587,0.868586,57619.0,57618.0,0.001638]
[1726081150804,0.5496944,57619.0,57618.0,0.009638]
[1726081151039,0.8968014,57619.0,57618.0,0.009638]
[1726081151506,1.2439084,57619.0,57618.0,0.009638]
[1726081152026,1.215693,57619.0,57618.0,0.001638]
[1726081152241,1.216693,57619.0,57618.0,0.006638]
[1726081152470,0.869586,57619.0,57618.0,0.006638]
[1726081153572,0.173572,57613.0,57608.0,0.173586]
[1726081154008,0.173572,57613.0,57609.0,0.173583]
[1726081154886,0.174572,57613.0,57609.0,0.173583]
[1726081155110,0.20178931,57613.0,57609.0,0.173583]
[1726081155544,0.02721731,57613.0,57612.0,0.867872]
[1726081155761,0.02721731,57613.0,57609.0,0.070096]
[1726081155977,0.02721731,57613.0,57611.0,0.173576]
[1726081156191,0.02721731,57613.0,57611.0,0.173575]
[1726081156673,0.02721731,57613.0,57612.0,0.173574]
[1726081157575,0.02821731,57613.0,57612.0,0.173574]
[1726081158022,0.02721731,57613.0,57612.0,0.173574]
[1726081158246,0.02821731,57613.0,57612.0,0.527723]
[1726081158889,0.02821731,57613.0,57612.0,0.007]
[1726081159132,0.02821731,57613.0,57612.0,0.180574]
[1726081159351,0.02821731,57613.0,57612.0,0.527723]
[1726081159843,0.02821731,57613.0,57612.0,0.180574]
[1726081160056,0.02821731,57613.0,57612.0,1.64980693]
[1726081160274,0.001,57613.0,57612.0,1.72600693]
[1726081160974,0.00270084,57618.0,57617.0,0.867797]
[1726081163498,0.00270084,57618.0,57617.0,0.520678]
[1726081163727,0.00270084,57618.0,57617.0,0.869435]
[1726081163940,0.00270084,57618.0,57617.0,0.183197]
[1726081164157,0.00270084,57618.0,57617.0,0.530316]
[1726081164434,0.00270084,57618.0,57617.0,0.001638]
[1726081164641,0.00270084,57618.0,57617.0,0.013638]
[1726081164642,0.52770929,57618.0,57617.0,0.013638]
[1726081164909,1.22193529,57618.0,57617.0,0.013638]
[1726081165113,1.21759584,57618.0,57617.0,0.013638]
[1726081165339,1.21759584,57618.0,57617.0,0.001638]
[1726081165570,0.87048284,57618.0,57617.0,0.001638]
[1726081165791,0.17625684,57618.0,57617.0,0.001638]
[1726081166237,0.52336984,57618.0,57617.0,0.001638]
[1726081166461,0.87048284,57618.0,57617.0,0.001638]
[1726081166885,0.52336984,57618.0,57617.0,0.001638]
[1726081167120,0.86998284,57618.0,57617.0,0.001638]
[1726081167338,0.87098284,57618.0,57617.0,0.012638]
[1726081167580,0.55108662,57618.0,57617.0,0.012638]
[1726081167802,0.55008662,57618.0,57617.0,0.001638]
[1726081168194,0.55108662,57618.0,57617.0,0.013638]
[1726081170307,0.89819962,57618.0,57617.0,0.013638]
[1726081170519,0.55108662,57618.0,57617.0,0.013638]
[1726081170961,0.89819962,57618.0,57617.0,0.013638]
[1726081172080,0.87098284,57618.0,57617.0,0.013638]
[1726081172768,0.00320084,57618.0,57617.0,0.013638]
[1726081173017,0.00320084,57618.0,57617.0,0.5703936]
[1726081173227,0.00320084,57618.0,57617.0,0.0497156]
[1726081173438,0.00320084,57618.0,57617.0,0.013638]
[1726081173648,0.00320084,57618.0,57617.0,0.187197]
[1726081174149,0.00320084,57618.0,57617.0,0.013638]
[1726081174358,0.17675684,57618.0,57617.0,0.013638]
[1726081174977,0.00320084,57618.0,57617.0,0.013638]
[1726081175239,0.17675684,57618.0,57617.0,0.013638]
[1726081176211,0.87098284,57618.0,57617.0,0.013638]
[1726081176427,0.52386984,57618.0,57617.0,0.013638]
[1726081176662,0.89819908,57618.0,57617.0,0.013638]
[1726081176884,0.89901808,57618.0,57617.0,0.013638]
[1726081178217,1.24613108,57618.0,57617.0,0.013638]
[1726081178679,1.32133108,57618.0,57617.0,0.013638]
[1726081181427,1.24613108,57618.0,57617.0,0.013638]
[1726081182079,0.52468884,57618.0,57617.0,0.013638]
[1726081182304,0.17757584,57618.0,57617.0,0.013638]
[1726081182544,0.52468884,57618.0,57617.0,0.013638]
[1726081185531,0.87180184,57618.0,57617.0,0.013638]
[1726081186633,0.89901835,57618.0,57617.0,0.013638]
[1726081186855,0.55190535,57618.0,57617.0,0.013638]
[1726081187993,0.55190535,57618.0,57617.0,0.195138]
[1726081188218,0.05160121,57631.0,57627.0,0.1815]
[1726081188449,0.05160121,57632.0,57631.0,0.520552]
[1726081188676,0.0046226,57633.0,57627.0,0.1815]
[1726081188677,0.00896052,57633.0,57627.0,0.1815]
[1726081188905,0.00896052,57633.0,57624.0,0.347073]
[1726081188906,0.1781366,57633.0,57624.0,0.347073]
[1726081189121,0.1781366,57633.0,57621.0,0.0939]
[1726081189122,0.0046226,57633.0,57621.0,0.0939]
[1726081189394,0.347029,57632.0,57626.0,0.173532]
[1726081189626,0.0046226,57633.0,57629.0,0.173523]
[1726081189854,0.0046226,57633.0,57628.0,0.347051]
[1726081190082,0.0046226,57633.0,57629.0,0.173522]
[1726081190312,0.0046226,57633.0,57630.0,0.0520577]
[1726081190804,0.1781356,57633.0,57630.0,0.0520577]
[1726081191020,0.1781356,57633.0,57628.0,0.173525]
[1726081191236,0.22973681,57633.0,57628.0,0.173525]
[1726081191445,0.22973681,57633.0,57629.0,0.003]
[1726081191659,0.1781356,57633.0,57629.0,0.003]
[1726081191918,0.1781356,57633.0,57629.0,0.176523]
[1726081193515,0.22973681,57633.0,57629.0,0.173523]
[1726081193747,0.1781356,57633.0,57629.0,0.173523]
[1726081193978,0.173514,57632.0,57629.0,0.173523]
[1726081194430,0.173514,57632.0,57629.0,0.176523]
[1726081195389,0.20072333,57632.0,57629.0,0.176523]
[1726081195864,0.20072333,57632.0,57629.0,0.173523]
[1726081196103,0.20072333,57632.0,57629.0,0.177523]
[1726081196310,0.02720933,57632.0,57629.0,0.177523]
[1726081196734,0.20072333,57632.0,57629.0,0.177523]
[1726081196958,0.17352,57630.0,57629.0,0.004]
[1726081198109,0.54775633,57632.0,57629.0,0.004]
[1726081198321,0.54775633,57632.0,57631.0,0.520552]
[1726081198322,0.02720933,57632.0,57631.0,0.520552]
[1726081198542,0.02720933,57632.0,57630.0,0.1912729]
[1726081198752,0.347035,57631.0,57617.0,0.65044748]
[1726081198978,0.20072433,57632.0,57628.0,0.173524]
[1726081199192,0.02720933,57632.0,57629.0,0.006]
[1726081199409,0.02720933,57632.0,57631.0,0.173517]
[1726081199627,0.02720933,57632.0,57631.0,1.24697848]
[1726081199858,0.02720933,57632.0,57630.0,0.173519]
[1726081200315,0.173553,57620.0,57617.0,0.001638]
[1726081200540,0.520669,57618.0,57617.0,0.001638]
[1726081200770,0.0927,57624.0,57617.0,0.001638]
[1726081201011,0.02721615,57619.0,57618.0,0.597569]
[1726081201226,0.173556,57618.0,57617.0,0.001638]
[1726081201452,1.41723436,57618.0,57617.0,0.001638]
[1726081201667,1.41723436,57618.0,57612.0,0.0003906]
[1726081201668,1.155857,57613.0,57612.0,0.0003906]
[1726081201903,2.25839568,57613.0,57612.0,0.0003906]
[1726081202105,2.35839568,57613.0,57612.0,0.0003906]
[1726081202324,2.51274632,57613.0,57612.0,0.0003906]
[1726081202765,2.80447675,57613.0,57612.0,0.0003906]
[1726081203002,1.215361,57596.0,57585.0,0.51989914]
[1726081203217,0.969215,57596.0,57585.0,0.51989914]
[1726081203525,0.05139782,57600.0,57589.0,0.347283]
[1726081203724,0.173623,57596.0,57589.0,0.173642]
[1726081203928,0.173623,57596.0,57590.0,0.17364]
[1726081204143,0.173623,57596.0,57588.0,0.0937]
[1726081204144,0.173623,57596.0,57595.0,0.00864]
[1726081205212,0.520869,57596.0,57595.0,0.00864]
[1726081205422,0.868115,57596.0,57595.0,0.00864]
[1726081206100,0.05139782,57602.0,57595.0,0.00164]
[1726081206332,0.05139782,57602.0,57595.0,0.00764]
[1726081206333,0.347215,57602.0,57595.0,0.00764]
[1726081206545,0.173617,57598.0,57595.0,0.00764]
[1726081206765,0.12889782,57606.0,57595.0,0.026314]
[1726081206991,0.17989673,57607.0,57597.0,0.347237]
[1726081206992,0.05139782,57607.0,57597.0,0.347237]
[1726081207214,0.10279564,57610.0,57595.0,0.020314]
[1726081207215,0.05139782,57608.0,57595.0,0.020314]
[1726081207458,0.347186,57606.0,57596.0,0.0189414]
[1726081207689,0.05139782,57609.0,57596.0,0.0189414]
[1726081207902,0.173606,57602.0,57597.0,0.173619]
[1726081208114,0.347187,57606.0,57596.0,0.1925624]
[1726081208329,0.173605,57602.0,57597.0,0.173618]
[1726081208534,0.173605,57602.0,57597.0,0.23550424]
[1726081208763,0.173608,57601.0,57597.0,0.173618]
[1726081208975,0.173616,57599.0,57595.0,0.00164]
[1726081209187,1.2426596,57598.0,57597.0,0.001]
[1726081209428,1.6717936,57598.0,57597.0,0.001]
[1726081209856,1.215361,57596.0,57595.0,0.00164]
[1726081210130,1.332661,57596.0,57595.0,0.00164]
[1726081210366,0.985415,57596.0,57595.0,0.00164]
[1726081210589,0.868115,57596.0,57595.0,0.00164]
[1726081211225,0.0809,57598.0,57595.0,0.00164]
[1726081211226,0.001,57598.0,57595.0,0.00164]
[1726081211481,0.868115,57596.0,57595.0,0.00164]
[1726081211688,0.943515,57596.0,57595.0,0.00164]
[1726081212543,0.944515,57596.0,57595.0,0.01064]
[1726081213172,0.869115,57596.0,57595.0,0.01064]
[1726081213605,1.239361,57596.0,57595.0,0.01064]
[1726081213840,1.241361,57596.0,57595.0,0.01064]
[1726081214084,1.239361,57596.0,57595.0,0.01064]
[1726081214316,1.241361,57596.0,57595.0,0.01064]
[1726081214556,1.64583757,57596.0,57595.0,0.01064]
[1726081214766,1.92643757,57596.0,57595.0,0.01064]
[1726081215171,0.173674,57579.0,57578.0,0.1037]
[1726081215402,0.173674,57579.0,57574.0,0.001636]
[1726081215403,0.173686,57575.0,57574.0,0.001636]
[1726081215831,0.2009212,57575.0,57574.0,0.001636]
[1726081216043,0.8956652,57575.0,57574.0,0.001636]
[1726081217182,0.8956652,57575.0,57574.0,0.007636]
[1726081217183,0.5482932,57575.0,57574.0,0.007636]
[1726081217623,0.0272352,57575.0,57574.0,0.181325]
[1726081217868,0.0272352,57575.0,57574.0,1.06715986]
[1726081218079,0.0272352,57575.0,57574.0,0.71978086]
[1726081218297,0.0272352,57575.0,57574.0,1.048483]
[1726081218524,0.0272352,57575.0,57574.0,1.042483]
[1726081219156,0.0272352,57575.0,57574.0,0.184036]
[1726081219157,0.0282352,57575.0,57574.0,0.184036]
[1726081219375,0.0282352,57575.0,57574.0,0.357725]
[1726081219816,0.0272352,57575.0,57574.0,0.695104]
[1726081220041,0.0282352,57575.0,57574.0,0.705104]
[1726081220497,1.54461442,57575.0,57574.0,0.108236]
[1726081220720,1.64661442,57575.0,57574.0,0.011636]
[1726081221615,1.64561442,57575.0,57574.0,0.001636]
[1726081221855,1.99298642,57575.0,57574.0,0.001636]
[1726081222085,2.07575122,57575.0,57574.0,0.002636]
[1726081222566,2.58232322,57575.0,57574.0,0.001636]
[1726081222787,2.58732322,57575.0,57574.0,0.001636]
[1726081223030,2.58732322,57575.0,57572.0,0.00371706]
[1726081223031,1.593232,57573.0,57572.0,0.00371706]
[1726081223253,1.716232,57573.0,57572.0,0.00371706]
[1726081223471,1.776232,57573.0,57572.0,0.00371706]
[1726081223966,1.776232,57573.0,57560.0,0.001638]
[1726081223967,0.092,57566.0,57560.0,0.001638]
[1726081224182,1.42455204,57566.0,57565.0,9e-07]
[1726081224431,1.42455204,57566.0,57560.0,0.001638]
[1726081224432,1.477178,57562.0,57560.0,0.001638]
[1726081224656,1.82275522,57562.0,57560.0,0.001638]
[1726081224877,2.17020622,57562.0,57560.0,0.001638]
[1726081225092,2.14020622,57562.0,57560.0,0.001638]
[1726081225333,1.82000409,57562.0,57560.0,0.001638]
[1726081225563,1.11937587,57562.0,57560.0,0.001638]
[1726081225802,0.91887587,57562.0,57560.0,0.001638]
[1726081226287,0.89987587,57562.0,57560.0,0.001638]
[1726081226725,0.89587587,57562.0,57560.0,0.001638]
[1726081226969,0.54842487,57562.0,57560.0,0.001638]
[1726081227188,0.20197387,57562.0,57560.0,0.001638]
[1726081227641,0.02824887,57562.0,57560.0,0.001638]
[1726081227884,0.02824887,57562.0,57561.0,0.175366]
[1726081228109,0.02824887,57562.0,57561.0,0.352866]
[1726081228345,0.02824887,57562.0,57561.0,0.700323]
[1726081228557,0.02824887,57562.0,57561.0,0.352866]
[1726081229444,0.02824887,57562.0,57561.0,1.04778]
[1726081230595,0.02824887,57562.0,57561.0,0.700323]
[1726081230828,0.02824887,57562.0,57561.0,0.179138]
[1726081231271,0.02824887,57562.0,57561.0,0.352866]
[1726081231492,0.20097387,57562.0,57561.0,0.001638]
[1726081231713,0.54842487,57562.0,57561.0,0.001638]
[1726081231971,0.869627,57562.0,57561.0,0.006638]
[1726081232183,1.17020422,57562.0,57561.0,0.006638]
[1726081232417,1.16920422,57562.0,57561.0,0.001638]
[1726081232645,1.17020422,57562.0,57561.0,0.006638]
[1726081232873,0.869627,57562.0,57561.0,0.006638]
[1726081233356,0.869627,57562.0,57561.0,0.180366]
[1726081233357,0.001,57562.0,57561.0,0.180366]
[1726081233608,0.174725,57562.0,57561.0,0.107538]
[1726081233853,0.173725,57562.0,57561.0,0.102538]
[1726081234295,0.347445,57563.0,57561.0,0.102538]
[1726081234536,0.521176,57562.0,57561.0,0.001638]
[1726081234961,0.526176,57562.0,57561.0,0.001638]
[1726081235193,0.873627,57562.0,57561.0,0.001638]
[1726081235411,0.55341983,57562.0,57561.0,0.001638]
[1726081235882,0.03224383,57562.0,57561.0,0.254966]
[1726081236112,0.02724383,57562.0,57561.0,0.6629943]
[1726081236339,0.02724383,57562.0,57561.0,1.0104513]
[1726081236561,0.02824383,57562.0,57561.0,1.0154513]
[1726081236777,0.02824383,57562.0,57561.0,0.95488]
[1726081237637,0.02824383,57562.0,57561.0,1.05038]
[1726081238267,0.0803,57586.0,57561.0,1.05038]
[1726081238268,0.39235563,57585.0,57566.0,0.032]
[1726081238493,0.51989914,57595.0,57561.0,0.38421522]
[1726081238494,0.51989914,57580.0,57579.0,0.173674]
[1726081238708,0.002,57594.0,57576.0,0.1754]
[1726081238913,0.347328,57583.0,57576.0,0.1754]
[1726081239136,0.27757722,57589.0,57576.0,0.0955]
[1726081239368,0.27957722,57584.0,57561.0,0.349093]
[1726081239601,0.173695,57573.0,57568.0,0.173706]
[1726081240020,0.347377,57575.0,57565.0,0.0769]
[1726081240235,0.173702,57570.0,57565.0,0.0769]
[1726081240442,0.173702,57570.0,57565.0,0.250614]
[1726081240653,0.173703,57570.0,57565.0,0.250615]
[1726081240893,0.347358,57578.0,57565.0,0.250615]
[1726081240894,0.347358,57578.0,57565.0,0.1811356]
[1726081241069,0.0793,57581.0,57568.0,0.347414]
[1726081241070,0.347342,57581.0,57568.0,0.347414]
[1726081241313,0.347342,57581.0,57577.0,0.173677]
[1726081241314,0.17367,57581.0,57577.0,0.173677]
[1726081241514,0.08364201,57587.0,57576.0,0.007]
[1726081241735,0.52104,57577.0,57576.0,0.007]
[1726081241963,0.173698,57571.0,57570.0,0.1007]
[1726081242468,0.173687,57575.0,57570.0,0.1007]
[1726081242685,0.173681,57577.0,57572.0,0.173693]
[1726081242902,0.347353,57579.0,57570.0,0.1007]
[1726081242903,0.173675,57579.0,57570.0,0.1007]
[1726081243136,0.173674,57579.0,57575.0,0.173684]
[1726081243359,0.347337,57581.0,57570.0,0.1007]
[1726081243360,0.35169797,57578.0,57570.0,0.1007]
[1726081243575,0.173712,57567.0,57565.0,0.0984]
[1726081243792,0.173712,57567.0,57563.0,0.173722]
[1726081244021,0.173712,57567.0,57561.0,0.100038]
[1726081244022,0.347437,57565.0,57561.0,0.100038]
[1726081244231,0.0789,57576.0,57561.0,0.100038]
[1726081244232,0.173725,57562.0,57561.0,0.100038]
[1726081244464,0.347423,57567.0,57561.0,0.273765]
[1726081244686,0.347423,57567.0,57561.0,0.100038]
[1726081244687,0.34743,57566.0,57561.0,0.100038]
[1726081244911,0.17372,57564.0,57561.0,0.100038]
[1726081246221,0.001,57562.0,57561.0,0.114038]
[1726081246466,0.001,57562.0,57561.0,0.287766]
[1726081246683,0.001,57562.0,57561.0,0.635223]
[1726081246905,0.001,57562.0,57561.0,1.4364337]
[1726081247594,0.51989914,57579.0,57578.0,0.173677]
[1726081247595,0.39235563,57579.0,57578.0,0.173677]
[1726081247838,0.173657,57585.0,57578.0,0.347348]
[1726081248082,0.173657,57585.0,57573.0,0.347384]
[1726081248083,0.173655,57586.0,57582.0,0.173664]
[1726081248298,0.173655,57586.0,57579.0,0.0984]
[1726081248299,0.02723342,57584.0,57583.0,0.597686]
[1726081248547,0.02723342,57584.0,57583.0,0.94501]
[1726081248790,0.02723342,57584.0,57583.0,1.0840847]
[1726081249451,0.02723342,57584.0,57583.0,0.7407607]
[1726081249667,0.02723342,57584.0,57583.0,1.0880847]
[1726081250551,0.02723342,57584.0,57583.0,0.0807]
[1726081250997,0.02805342,57584.0,57583.0,0.250362]
[1726081251221,0.02805342,57584.0,57583.0,0.94901]
[1726081251652,0.02805342,57584.0,57583.0,0.94501]
[1726081251874,0.02805342,57584.0,57583.0,0.597686]
[1726081252082,0.02805342,57584.0,57583.0,0.0877]
[1726081252513,0.02805342,57584.0,57583.0,0.608686]
[1726081252725,0.02805342,57584.0,57583.0,0.261362]
[1726081252937,0.02805342,57584.0,57583.0,0.011]
[1726081252938,0.62443042,57584.0,57583.0,0.011]
[1726081253152,0.97174842,57584.0,57583.0,0.011]
[1726081253363,1.31906642,57584.0,57583.0,0.011]
[1726081253589,0.99474842,57584.0,57583.0,0.011]
[1726081253811,0.91934842,57584.0,57583.0,0.011]
[1726081254077,0.173673,57580.0,57576.0,0.173681]
[1726081254248,0.347337,57581.0,57573.0,0.17369]
[1726081254249,0.173681,57577.0,57573.0,0.17369]
[1726081254882,0.347345,57580.0,57574.0,0.173689]
[1726081255105,0.347345,57580.0,57565.0,0.347429]
[1726081255106,0.02723509,57577.0,57565.0,0.347429]
[1726081255352,0.02723509,57577.0,57573.0,0.002]
[1726081255353,0.173687,57575.0,57573.0,0.002]
[1726081256479,0.173687,57575.0,57571.0,0.173697]
[1726081256731,0.02723509,57577.0,57569.0,0.447409]
[1726081256732,0.173701,57570.0,57569.0,0.1]
[1726081256962,0.173725,57562.0,57561.0,0.001638]
[1726081257178,0.521176,57562.0,57561.0,0.001638]
[1726081257674,0.54841916,57562.0,57561.0,0.001638]
[1726081257900,0.89587016,57562.0,57561.0,0.001638]
[1726081258131,0.54841916,57562.0,57561.0,0.001638]
[1726081258562,1.54899576,57562.0,57561.0,0.001638]
[1726081258804,1.55099576,57562.0,57561.0,0.001638]
[1726081259015,1.89844676,57562.0,57561.0,0.001638]
[1726081259235,1.89644676,57562.0,57561.0,0.001638]
[1726081259458,1.43612116,57562.0,57561.0,0.002638]
[1726081259673,1.08867016,57562.0,57561.0,0.002638]
[1726081259863,1.43612116,57562.0,57561.0,0.002638]
[1726081260113,1.08867016,57562.0,57561.0,0.002638]
[1726081260557,0.97057016,57562.0,57561.0,0.002638]
[1726081261297,1.34102116,57562.0,57561.0,0.001638]
[1726081261531,1.80134676,57562.0,57561.0,0.001638]
[1726081261771,1.87805215,57562.0,57561.0,0.002638]
[1726081261997,1.80134676,57562.0,57561.0,0.00088514]
[1726081262218,2.10548889,57562.0,57561.0,0.00088514]
[1726081262454,2.20548889,57562.0,57561.0,0.00088514]
[1726081262673,1.239099,57561.0,57560.0,0.00070627]
[1726081262889,1.339099,57561.0,57560.0,0.00070627]
[1726081263150,1.41576571,57561.0,57560.0,0.00070627]
[1726081263388,1.339099,57561.0,57560.0,0.00070627]
[1726081263608,1.41576654,57561.0,57560.0,0.00070627]
[1726081264075,1.06830954,57561.0,57560.0,0.00070627]
[1726081264316,0.57227695,57561.0,57560.0,0.00070627]
[1726081264539,0.02724316,57562.0,57560.0,0.00070627]
[1726081264786,0.04124316,57562.0,57561.0,0.174728]
[1726081265014,0.04124316,57562.0,57561.0,0.869642]
[1726081265285,0.04124316,57562.0,57561.0,0.868642]
[1726081265529,0.02724316,57562.0,57561.0,1.46111823]
[1726081265760,0.02724316,57562.0,57561.0,1.56281823]
[1726081265974,0.02724316,57562.0,57561.0,1.393899]
[1726081266662,0.02824316,57562.0,57561.0,1.057442]
[1726081267663,0.02824316,57562.0,57561.0,0.709985]
[1726081267888,0.02824316,57562.0,57561.0,0.1888]
[1726081268109,0.02724316,57562.0,57561.0,0.351528]
[1726081268554,0.02824316,57562.0,57561.0,0.352528]
[1726081268776,0.20196816,57562.0,57561.0,0.1027]
[1726081268997,0.54941916,57562.0,57561.0,0.001]
[1726081269223,0.173728,57561.0,57560.0,0.00070627]
[1726081269443,0.521185,57561.0,57560.0,0.00070627]
[1726081269879,0.173728,57561.0,57560.0,0.00070627]
[1726081270530,0.02724316,57562.0,57560.0,0.00070627]
[1726081270769,0.02724316,57562.0,57561.0,0.173728]
[1726081271220,0.20097016,57562.0,57560.0,0.00070627]
[1726081271695,0.02724316,57562.0,57560.0,0.00070627]
[1726081271902,0.02724316,57562.0,57560.0,0.00270627]
[1726081272156,0.02724316,57562.0,57560.0,0.17643627]
[1726081272377,0.02724316,57562.0,57560.0,0.17443627]
[1726081272845,0.02824316,57562.0,57560.0,0.18543627]
[1726081273072,0.02824316,57562.0,57560.0,0.01170627]
[1726081273327,0.173728,57561.0,57560.0,0.01170627]
[1726081273551,0.20197016,57562.0,57560.0,0.01170627]
[1726081273772,0.20197016,57562.0,57560.0,0.00736313]
[1726081274028,0.02824316,57562.0,57560.0,0.00736313]
[1726081274466,0.02724316,57562.0,57559.0,0.175372]
[1726081274683,0.001,57561.0,57560.0,0.012]
[1726081275333,0.02724316,57562.0,57559.0,0.175372]
[1726081275546,0.02824316,57562.0,57560.0,0.01264]
[1726081275770,0.20196816,57562.0,57560.0,0.01264]
[1726081275993,0.20278816,57562.0,57560.0,0.01264]
[1726081276241,0.521185,57561.0,57560.0,0.01264]
[1726081276463,0.868642,57561.0,57560.0,0.01264]
[1726081276687,0.521185,57561.0,57560.0,0.00164]
[1726081277335,0.02806316,57562.0,57561.0,0.173728]
[1726081277557,0.02806316,57562.0,57560.0,0.00164]
[1726081277831,0.02806316,57562.0,57560.0,0.17537]
[1726081278042,0.001,57561.0,57560.0,0.527833]
[1726081278256,0.001,57561.0,57560.0,0.624933]
[1726081278451,0.00082,57562.0,57561.0,0.521185]
[1726081278669,0.00082,57562.0,57561.0,0.868642]
[1726081278888,0.175547,57562.0,57560.0,0.10374]
[1726081279155,0.00182,57562.0,57561.0,0.173728]
[1726081279394,0.00082,57562.0,57561.0,1.0441471]
[1726081279640,0.00082,57562.0,57561.0,1.39507844]
[1726081279885,0.00082,57562.0,57561.0,1.96693544]
[1726081280103,0.00082,57562.0,57561.0,2.02593544]
[1726081280817,0.02805487,57562.0,57561.0,2.02593544]
[1726081281493,0.00082,57564.0,57563.0,1.099012]
[1726081281724,0.00082,57564.0,57563.0,1.59262655]
[1726081281940,0.00082,57564.0,57563.0,2.10007155]
[1726081282649,0.00082,57564.0,57563.0,2.04007155]
[1726081284302,0.00082,57564.0,57563.0,2.3178021]
[1726081284541,0.00082,57564.0,57563.0,2.3318021]
[1726081285226,0.00082,57564.0,57563.0,2.3178021]
[1726081285458,0.00082,57564.0,57563.0,2.3318021]
[1726081287350,0.00082,57564.0,57563.0,2.3018021]
[1726081287590,0.00082,57564.0,57563.0,2.3938021]
[1726081287814,0.00082,57564.0,57563.0,2.7392471]
[1726081289015,0.00082,57564.0,57563.0,2.7740671]
[1726081289491,0.00082,57564.0,57563.0,2.7760671]
[1726081289741,0.00082,57564.0,57563.0,2.4266221]
[1726081289985,0.00082,57564.0,57563.0,2.43888001]
[1726081290227,0.00082,57564.0,57563.0,2.40406001]
[1726081292127,0.00082,57564.0,57563.0,2.3918021]
[1726081295935,0.00082,57564.0,57563.0,1.9843571]
[1726081296152,0.00082,57564.0,57563.0,1.70662655]
[1726081296633,0.00082,57564.0,57563.0,0.014]
[1726081296867,0.173725,57563.0,57560.0,0.00164]
[1726081297107,0.173726,57562.0,57560.0,0.00164]
[1726081297371,0.347445,57563.0,57560.0,0.00164]
[1726081297372,0.521185,57561.0,57560.0,0.00164]
[1726081297618,0.868642,57561.0,57560.0,0.00164]
[1726081298112,0.868642,57561.0,57560.0,0.01064]
[1726081298113,0.521185,57561.0,57560.0,0.01064]